bitfinex/quotes_BTCUSD_20251120
["timestamp","ask_amount","ask_price","bid_price","bid_amount"]
[1763646053609,0.2534881,92071.0,92070.0,0.0004]
[1763646053809,0.2772681,92071.0,92070.0,0.0004]
[1763646055734,0.28744287,92071.0,92070.0,0.0004]
[1763646056807,0.54026141,92055.0,92054.0,1.08467101]
[1763646057015,0.64041871,92055.0,92054.0,1.07831551]
[1763646057221,0.61419871,92055.0,92054.0,1.07831551]
[1763646057423,0.54027086,92051.0,92050.0,0.0004]
[1763646057636,0.59891816,92051.0,92050.0,0.0004]
[1763646057886,0.62269816,92051.0,92050.0,0.0004]
[1763646058106,0.64219086,92051.0,92050.0,0.0004]
[1763646058310,0.70446644,92051.0,92050.0,0.0004]
[1763646058527,0.21729446,92041.0,92040.0,0.0004]
[1763646058741,0.55994446,92041.0,92040.0,0.0004]
[1763646058913,0.61021094,92041.0,92040.0,0.0004]
[1763646059170,0.65214034,92041.0,92040.0,0.0004]
[1763646059752,0.65218223,92041.0,92040.0,0.0004]
[1763646060346,0.72352845,92041.0,92040.0,0.0004]
[1763646060502,0.70418223,92041.0,92040.0,0.0004]
[1763646060714,0.21736531,92011.0,92010.0,1.08467101]
[1763646060925,0.24198531,92011.0,92010.0,1.08467101]
[1763646061132,0.01086932,92002.0,91998.0,0.02923639]
[1763646061328,0.01086862,92008.0,91980.0,0.01039999]
[1763646061329,0.01087121,91986.0,91980.0,0.01039999]
[1763646061535,0.2333262,91981.0,91980.0,0.0004]
[1763646061942,0.21745985,91971.0,91970.0,0.03214621]
[1763646062173,0.21745985,91971.0,91970.0,0.00012596]
[1763646062174,0.62446234,91971.0,91970.0,0.00012596]
[1763646062369,0.69884234,91971.0,91970.0,0.00012596]
[1763646062574,0.21748822,91959.0,91958.0,0.00367224]
[1763646062828,0.21748822,91959.0,91958.0,0.00409273]
[1763646062829,0.59101215,91959.0,91958.0,0.00409273]
[1763646063108,0.54050715,91951.0,91950.0,0.0004]
[1763646063247,0.67919403,91951.0,91950.0,0.0005262]
[1763646063459,0.60147154,91951.0,91950.0,0.0005262]
[1763646063834,0.60523154,91951.0,91950.0,0.0005262]
[1763646064249,0.65523154,91951.0,91950.0,0.0005262]
[1763646064465,0.60523154,91951.0,91950.0,0.0005262]
[1763646064892,0.04034439,91951.0,91950.0,0.0005262]
[1763646065127,0.22126715,91951.0,91950.0,0.0005262]
[1763646065345,0.26187715,91951.0,91950.0,0.0005262]
[1763646065545,0.26487715,91951.0,91950.0,0.0005262]
[1763646065797,0.26287715,91951.0,91950.0,0.0005262]
[1763646065998,0.26187715,91951.0,91950.0,0.0005262]
[1763646066422,0.26387715,91951.0,91950.0,0.0005262]
[1763646066665,0.58687715,91951.0,91950.0,0.0005262]
[1763646066845,0.58587715,91951.0,91950.0,0.0005262]
[1763646067446,0.63687715,91951.0,91950.0,0.0005262]
[1763646067647,0.58687715,91951.0,91950.0,0.0005262]
[1763646068057,0.58687715,91951.0,91930.0,0.0004]
[1763646068261,0.24425447,91931.0,91930.0,0.00082112]
[1763646068492,0.00376,91931.0,91930.0,0.00082112]
[1763646069208,0.04437,91931.0,91930.0,0.00082112]
[1763646070026,0.01999,91931.0,91930.0,0.00082112]
[1763646070221,0.00376,91931.0,91930.0,0.00082112]
[1763646071155,0.04437,91931.0,91930.0,0.00082112]
[1763646071919,0.42047249,91931.0,91930.0,0.00082112]
[1763646072126,0.21763732,91896.0,91888.0,1.08467101]
[1763646072328,0.21763732,91896.0,91880.0,0.01075]
[1763646072329,0.01225,91895.0,91894.0,0.00013209]
[1763646073003,0.00376,91900.0,91894.0,0.01101419]
[1763646073201,0.00376,91900.0,91896.0,0.01088186]
[1763646073337,0.00376,91900.0,91897.0,0.0280092]
[1763646073545,0.21763212,91899.0,91894.0,0.00013209]
[1763646073739,0.02848,91895.0,91894.0,0.00013209]
[1763646074437,0.01225,91895.0,91894.0,0.00013209]
[1763646074826,0.01225,91895.0,91894.0,0.00198842]
[1763646074981,0.05286,91895.0,91894.0,0.00198842]
[1763646075182,0.01225,91895.0,91894.0,0.00198842]
[1763646075430,0.52271441,91920.0,91905.0,0.0108808]
[1763646075431,0.01225,91920.0,91905.0,0.0108808]
[1763646075571,0.01088091,91904.0,91898.0,0.02603162]
[1763646075775,0.01088162,91898.0,91894.0,0.00013209]
[1763646076176,0.01623,91895.0,91894.0,0.00013209]
[1763646076370,0.01999,91895.0,91894.0,0.00013209]
[1763646076616,0.04437,91895.0,91894.0,0.00013209]
[1763646076831,0.00376,91895.0,91894.0,0.00013209]
[1763646077273,0.01088174,91897.0,91894.0,0.00013209]
[1763646077492,0.21763969,91895.0,91894.0,0.00013209]
[1763646078009,0.01088139,91900.0,91894.0,0.00013209]
[1763646078010,0.00376,91902.0,91894.0,0.00013209]
[1763646078214,0.00376,91902.0,91895.0,0.22852095]
[1763646078215,0.22850924,91900.0,91895.0,0.22852095]
[1763646078364,0.22138364,91902.0,91896.0,0.01088186]
[1763646078563,0.22138364,91902.0,91897.0,0.01088174]
[1763646078564,0.00376,91902.0,91897.0,0.01088174]
[1763646078769,0.00376,91902.0,91899.0,0.22850917]
[1763646078967,0.00376,91902.0,91898.0,0.01088162]
[1763646079183,0.23226495,91902.0,91898.0,0.01088162]
[1763646079406,0.01464115,91902.0,91898.0,0.01088162]
[1763646079630,0.01464115,91902.0,91898.0,0.22851323]
[1763646079833,0.21763777,91896.0,91894.0,0.00013209]
[1763646079970,0.22851773,91897.0,91894.0,0.00013209]
[1763646080547,0.01088162,91898.0,91894.0,0.01726113]
[1763646080753,0.00476,91902.0,91899.0,0.01088151]
[1763646080990,0.21763124,91899.0,91897.0,0.01214]
[1763646081203,0.00376,91902.0,91899.0,0.21762954]
[1763646081421,0.01087784,91930.0,91921.0,0.0108789]
[1763646081629,0.21758287,91919.0,91918.0,0.00823]
[1763646081890,0.21758287,91919.0,91901.0,0.01515]
[1763646081891,0.01087961,91915.0,91898.0,0.00376]
[1763646082109,0.01087926,91918.0,91903.0,0.21762033]
[1763646082320,0.01087878,91922.0,91914.0,0.01087973]
[1763646082539,0.00376,91924.0,91919.0,0.22846037]
[1763646082768,0.22845207,91923.0,91919.0,0.01087914]
[1763646082991,0.22845207,91923.0,91918.0,0.22846378]
[1763646082992,0.01087772,91931.0,91925.0,0.01087843]
[1763646083211,0.22844009,91928.0,91925.0,1.08467101]
[1763646083429,0.21756531,91927.0,91925.0,1.08467101]
[1763646083634,0.01087997,91912.0,91906.0,1.08467101]
[1763646083839,0.01087949,91916.0,91907.0,0.01712114]
[1763646084041,0.01088009,91911.0,91907.0,0.01712114]
[1763646084248,0.0108802,91910.0,91907.0,0.01716323]
[1763646084471,0.00376,91917.0,91907.0,0.02804379]
[1763646084675,0.00376,91917.0,91908.0,0.01088044]
[1763646084873,0.00376,91917.0,91914.0,0.21759417]
[1763646085078,0.00376,91917.0,91915.0,0.21759165]
[1763646085317,0.01087997,91912.0,91907.0,4.209e-05]
[1763646085525,0.01087985,91913.0,91907.0,4.209e-05]
[1763646085733,0.21760793,91909.0,91907.0,4.209e-05]
[1763646087039,0.01623,91908.0,91907.0,4.209e-05]
[1763646087168,0.08804219,91908.0,91907.0,4.209e-05]
[1763646087989,0.02023108,91908.0,91907.0,4.209e-05]
[1763646088643,0.02031057,91908.0,91907.0,4.209e-05]
[1763646088843,0.02031057,91908.0,91904.0,0.21761706]
[1763646089044,0.02031057,91907.0,91904.0,0.00012631]
[1763646089248,0.02031057,91906.0,91905.0,0.21761552]
[1763646089670,0.02031057,91906.0,91904.0,0.00012631]
[1763646089671,0.23792441,91906.0,91904.0,0.00012631]
[1763646089878,0.02031343,91905.0,91904.0,0.00012631]
[1763646090087,0.02031343,91905.0,91904.0,0.21774469]
[1763646090296,0.01087997,91912.0,91909.0,0.21760584]
[1763646090518,0.02031471,91911.0,91910.0,0.21760417]
[1763646090720,0.02031471,91911.0,91909.0,0.22848616]
[1763646091056,0.01087843,91925.0,91921.0,0.0108789]
[1763646091241,0.2378881,91924.0,91921.0,0.21757637]
[1763646091398,0.02031707,91923.0,91922.0,0.2175754]
[1763646092010,0.02031707,91923.0,91921.0,0.23734686]
[1763646092211,0.02031707,91922.0,91921.0,0.0197689]
[1763646092413,0.02031707,91922.0,91921.0,0.00889]
[1763646092609,0.02031707,91922.0,91909.0,0.21760454]
[1763646092610,0.01087949,91916.0,91911.0,0.01088009]
[1763646092819,0.02031707,91915.0,91913.0,0.21759585]
[1763646092998,0.02031707,91914.0,91913.0,0.21759585]
[1763646093613,0.02031707,91914.0,91913.0,0.25649585]
[1763646094426,0.02031707,91914.0,91913.0,0.27280924]
[1763646095386,0.00376,91942.0,91939.0,0.2284103]
[1763646095544,0.03121191,91941.0,91937.0,1.08467101]
[1763646095747,0.02033537,91940.0,91938.0,0.01087689]
[1763646095948,0.01087618,91944.0,91938.0,0.01087689]
[1763646095949,0.02033537,91939.0,91938.0,0.25181474]
[1763646096168,0.02033537,91939.0,91937.0,1.30221088]
[1763646096169,0.02033537,91939.0,91937.0,1.08467101]
[1763646096366,0.02033537,91938.0,91937.0,1.08467101]
[1763646097100,0.02033537,91938.0,91937.0,1.30221128]
[1763646097300,0.02033537,91938.0,91937.0,1.08467101]
[1763646097708,0.02033537,91938.0,91937.0,1.30221128]
[1763646098031,0.02033537,91938.0,91937.0,1.34111128]
[1763646098269,0.02033537,91938.0,91937.0,1.10017101]
[1763646098479,0.27662327,91938.0,91937.0,1.08467101]
[1763646098687,0.28038327,91938.0,91937.0,1.08467101]
[1763646100171,0.28138327,91938.0,91937.0,1.08467101]
[1763646102081,0.21760891,91908.0,91907.0,0.01226]
[1763646102254,0.23794428,91908.0,91907.0,1.09705732]
[1763646102595,0.23794428,91908.0,91907.0,1.08479732]
[1763646103099,0.25339428,91908.0,91907.0,1.08579732]
[1763646103351,0.27669428,91908.0,91907.0,1.08579732]
[1763646103526,0.28045428,91908.0,91907.0,0.00112631]
[1763646103972,0.28045428,91908.0,91907.0,0.00012631]
[1763646105767,0.28043268,91908.0,91907.0,0.00012631]
[1763646106167,0.28143268,91908.0,91907.0,0.00012631]
[1763646107310,0.02507377,91908.0,91907.0,0.00012631]
[1763646107680,0.02507377,91908.0,91907.0,0.21773759]
[1763646107893,0.02131377,91908.0,91907.0,0.27607609]
[1763646108114,0.02131377,91908.0,91907.0,0.25663759]
[1763646108752,0.02131377,91908.0,91907.0,0.04050536]
[1763646108753,0.02031377,91908.0,91907.0,0.04050536]
[1763646108951,0.02031377,91908.0,91907.0,0.01710536]
[1763646109173,0.02131377,91908.0,91907.0,0.01710536]
[1763646109405,0.02131377,91908.0,91907.0,0.05681875]
[1763646109610,0.02131377,91908.0,91907.0,0.04050536]
[1763646109830,0.02031377,91908.0,91907.0,0.04050536]
[1763646110012,0.02031377,91908.0,91907.0,0.04150536]
[1763646110866,0.00376,91931.0,91928.0,0.22843735]
[1763646111080,0.0203303,91930.0,91929.0,0.21755783]
[1763646111272,0.0203303,91930.0,91929.0,0.24095783]
[1763646111550,0.0203303,91930.0,91929.0,0.25645783]
[1763646111758,0.0203303,91930.0,91929.0,0.28909623]
[1763646111978,0.0203303,91930.0,91929.0,0.59577122]
[1763646112207,0.01087464,91957.0,91929.0,0.59577122]
[1763646112208,0.01087311,91970.0,91959.0,0.01087441]
[1763646112414,0.01087311,91970.0,91959.0,1.08467101]
[1763646112415,0.01087405,91962.0,91959.0,1.08467101]
[1763646112615,0.23780863,91961.0,91959.0,1.08467101]
[1763646112818,0.03577369,91960.0,91959.0,1.08467101]
[1763646112947,0.05907369,91960.0,91959.0,1.08467101]
[1763646113148,0.05907369,91960.0,91947.0,1.08467101]
[1763646113149,0.21751424,91948.0,91947.0,1.08467101]
[1763646113353,0.23783793,91948.0,91947.0,1.08467101]
[1763646113587,0.27658793,91948.0,91947.0,1.08467101]
[1763646113972,0.05907369,91948.0,91947.0,1.08467101]
[1763646114099,0.02032369,91948.0,91947.0,1.08467101]
[1763646114889,0.05907369,91948.0,91947.0,1.08467101]
[1763646115222,0.01545,91948.0,91947.0,1.08467101]
[1763646115387,0.06593928,91948.0,91947.0,1.08467101]
[1763646115594,0.10255486,91948.0,91947.0,1.08467101]
[1763646115789,0.05905219,91948.0,91947.0,1.08467101]
[1763646116238,0.01087488,91955.0,91950.0,0.01087547]
[1763646116442,0.2283821,91952.0,91947.0,1.09554684]
[1763646116643,0.2283809,91952.0,91950.0,0.0002319]
[1763646117273,0.02718839,91951.0,91950.0,0.0002319]
[1763646117997,0.00012568,91955.0,91952.0,0.01087523]
[1763646118205,0.00012568,91955.0,91951.0,0.0155]
[1763646118402,0.00112568,91955.0,91950.0,0.0002319]
[1763646118599,0.00112568,91955.0,91953.0,0.21750163]
[1763646118922,0.00012568,91955.0,91953.0,0.21750163]
[1763646119121,0.00012568,91955.0,91952.0,0.2283791]
[1763646119339,0.21750541,91952.0,91950.0,0.0002319]
[1763646119545,0.00012568,91955.0,91953.0,0.21750164]
[1763646120139,0.00012568,91955.0,91954.0,0.0389]
[1763646120525,0.21750576,91952.0,91950.0,0.0002319]
[1763646120877,0.01087512,91953.0,91950.0,0.0002319]
[1763646121082,0.01545,91951.0,91950.0,0.0002319]
[1763646121293,0.02718839,91951.0,91950.0,0.0002319]
[1763646121510,0.00012568,91955.0,91950.0,0.0002319]
[1763646121714,0.21750709,91952.0,91950.0,0.0002319]
[1763646121917,0.21750534,91952.0,91950.0,0.0002319]
[1763646122125,0.01087547,91950.0,91947.0,0.95967101]
[1763646122348,0.0233,91951.0,91927.0,0.38134096]
[1763646122349,0.01087784,91930.0,91927.0,0.03901834]
[1763646122551,0.01087784,91930.0,91918.0,0.01087926]
[1763646122552,0.0108776,91932.0,91928.0,0.01179]
[1763646122783,0.01087772,91931.0,91928.0,0.01179]
[1763646122986,0.21755683,91930.0,91928.0,0.01179]
[1763646123199,0.01087985,91913.0,91907.0,0.03688]
[1763646123412,0.2284964,91906.0,91897.0,0.02462]
[1763646123630,0.21761838,91904.0,91894.0,1.08476101]
[1763646124044,0.21763969,91895.0,91894.0,9e-05]
[1763646124402,0.21763969,91895.0,91894.0,0.00021631]
[1763646124974,0.22850178,91903.0,91894.0,0.00021631]
[1763646124975,0.22850178,91903.0,91894.0,0.04051631]
[1763646125190,0.01088127,91901.0,91896.0,0.01568]
[1763646125386,0.2176345,91898.0,91896.0,0.01568]
[1763646125600,0.21761176,91907.0,91900.0,0.01568]
[1763646125808,0.01464032,91909.0,91897.0,0.03550174]
[1763646125809,0.00376,91909.0,91906.0,0.01088068]
[1763646126049,0.21763942,91896.0,91894.0,0.00021631]
[1763646126261,0.22851816,91897.0,91894.0,0.00021631]
[1763646126491,0.22851816,91897.0,91895.0,0.01568]
[1763646126724,0.22851816,91897.0,91896.0,0.01568]
[1763646127593,0.01088044,91908.0,91897.0,0.01088174]
[1763646127810,0.21762312,91902.0,91901.0,0.01179]
[1763646128019,0.21763969,91895.0,91894.0,1.08488732]
[1763646128447,0.21763969,91895.0,91894.0,0.00184066]
[1763646128658,0.22139969,91895.0,91894.0,0.00184066]
[1763646131796,0.22850415,91903.0,91894.0,0.04214066]
[1763646132063,0.21763496,91897.0,91895.0,0.01568]
[1763646132507,0.21763496,91897.0,91894.0,0.00021631]
[1763646132508,0.21763969,91895.0,91894.0,0.00021631]
[1763646133598,0.21763969,91895.0,91886.0,1.06408101]
[1763646133868,0.21769655,91871.0,91870.0,0.0002]
[1763646134086,0.54445655,91871.0,91870.0,0.0002]
[1763646134552,0.59445655,91871.0,91870.0,0.0002]
[1763646134777,0.64655904,91871.0,91870.0,0.0002]
[1763646135000,0.66677754,91871.0,91870.0,0.0002]
[1763646135240,0.54069655,91871.0,91870.0,0.0002]
[1763646135446,0.323,91871.0,91870.0,0.0002]
[1763646135678,0.54545655,91871.0,91870.0,0.0002]
[1763646135895,0.54169655,91871.0,91870.0,0.0002]
[1763646136110,0.01088364,91881.0,91873.0,0.01088459]
[1763646136317,0.01088387,91879.0,91871.0,0.01568]
[1763646136518,0.01088435,91875.0,91871.0,0.02656482]
[1763646136723,0.01088399,91878.0,91871.0,0.02656482]
[1763646136944,0.01088399,91878.0,91874.0,0.01088447]
[1763646137159,0.01088423,91876.0,91871.0,0.01568]
[1763646137361,0.01088435,91875.0,91870.0,0.0002]
[1763646137566,0.00376,91880.0,91875.0,0.02656435]
[1763646137782,0.00376,91880.0,91877.0,0.24424452]
[1763646137988,0.00376,91888.0,91884.0,0.01088328]
[1763646138205,0.01088316,91885.0,91881.0,0.01088364]
[1763646138419,0.22856236,91879.0,91866.0,0.01088542]
[1763646138629,0.00376,91888.0,91878.0,0.01088399]
[1763646138840,0.0108834,91883.0,91871.0,0.02462]
[1763646139060,0.01088257,91890.0,91887.0,0.01568]
[1763646139280,0.00376,91895.0,91887.0,0.02656293]
[1763646139494,0.01088234,91892.0,91889.0,0.01568]
[1763646139712,0.00376,91895.0,91892.0,0.22852708]
[1763646139925,0.0108821,91894.0,91891.0,0.01568]
[1763646140349,0.01088316,91885.0,91880.0,1.09555477]
[1763646140552,0.01088281,91888.0,91881.0,0.01088364]
[1763646140762,0.01088281,91888.0,91887.0,0.01568]
[1763646140965,0.01088257,91890.0,91887.0,0.01568]
[1763646141208,0.22853146,91892.0,91888.0,0.2285375]
[1763646141457,0.00376,91895.0,91892.0,0.22852742]
[1763646141612,0.01088234,91892.0,91884.0,0.01088328]
[1763646141816,0.21764917,91891.0,91887.0,0.01088293]
[1763646142057,0.01088257,91890.0,91887.0,0.01088293]
[1763646142276,0.22140054,91895.0,91884.0,1.09555429]
[1763646142277,0.64439858,91930.0,91902.0,0.01088115]
[1763646142450,0.21762313,91903.0,91900.0,1.08467101]
[1763646142649,0.01088068,91906.0,91900.0,1.08467101]
[1763646142850,0.00376,91908.0,91900.0,1.08467101]
[1763646143038,0.00376,91908.0,91905.0,0.0226708]
[1763646143238,0.00376,91908.0,91907.0,0.01568]
[1763646143723,0.01087961,91915.0,91910.0,0.0108802]
[1763646143942,0.01087961,91915.0,91905.0,0.0226708]
[1763646143943,0.01088044,91908.0,91905.0,0.01179]
[1763646144113,0.21761364,91906.0,91905.0,0.01179]
[1763646144320,0.01088044,91908.0,91905.0,0.01179]
[1763646144321,0.22848935,91908.0,91905.0,0.01179]
[1763646144574,0.00376,91916.0,91909.0,0.01088032]
[1763646144775,0.03896387,91965.0,91906.0,0.02462]
[1763646144776,0.00012563,91929.0,91923.0,0.01087867]
[1763646145008,0.00012563,91929.0,91928.0,0.24503156]
[1763646145467,0.00012563,91929.0,91928.0,0.26965156]
[1763646146943,0.00012563,91929.0,91928.0,0.3788165]
[1763646147359,0.00012563,91929.0,91928.0,0.7018165]
[1763646147567,0.00012563,91929.0,91928.0,0.59265156]
[1763646148193,0.00012563,91929.0,91928.0,0.34762]
[1763646148392,0.00012563,91929.0,91928.0,0.58086156]
[1763646148622,0.00012563,91929.0,91928.0,0.58186156]
[1763646149334,0.00012563,91929.0,91928.0,0.63396405]
[1763646149574,0.00012563,91929.0,91928.0,0.6706391]
[1763646149796,0.00012563,91929.0,91928.0,0.6696391]
[1763646150180,0.00012563,91929.0,91928.0,0.63296405]
[1763646150380,0.00012563,91929.0,91928.0,0.58462156]
[1763646151009,0.00012563,91929.0,91928.0,0.58562156]
[1763646152027,1.884e-05,91929.0,91928.0,0.58562156]
[1763646152204,0.22792321,91950.0,91949.0,0.02801]
[1763646152553,0.24820195,91950.0,91949.0,1.11268101]
[1763646152975,0.24820195,91950.0,91949.0,1.13669101]
[1763646153176,0.02027874,91950.0,91949.0,1.13669101]
[1763646154378,0.02027874,91950.0,91949.0,1.45969101]
[1763646154938,0.02027874,91950.0,91949.0,1.46345101]
[1763646155140,0.02027874,91950.0,91949.0,1.14145101]
[1763646156905,0.02027874,91950.0,91949.0,1.11368101]
[1763646157521,0.23778825,91950.0,91949.0,0.001]
[1763646157720,0.21753317,91940.0,91939.0,1.08467101]
[1763646157948,0.01087772,91931.0,91929.0,1.08467101]
[1763646158201,0.01087772,91931.0,91928.0,0.005]
[1763646158202,0.56083557,91930.0,91928.0,0.005]
[1763646158352,0.02027874,91929.0,91928.0,0.005]
[1763646158712,0.03659213,91929.0,91928.0,0.005]
[1763646159107,0.01088281,91888.0,91885.0,1.08467101]
[1763646159294,0.21766021,91887.0,91885.0,1.08479664]
[1763646159663,0.01088257,91890.0,91885.0,1.08479664]
[1763646159976,0.21766076,91887.0,91885.0,1.08479664]
[1763646160531,0.21766076,91887.0,91886.0,0.00185657]
[1763646160744,0.01088151,91899.0,91886.0,0.04180657]
[1763646160975,0.21765818,91888.0,91886.0,0.01594]
[1763646161182,0.01088174,91897.0,91889.0,0.01088269]
[1763646161388,0.2285411,91888.0,91885.0,1.08479664]
[1763646161594,0.2285411,91888.0,91885.0,0.00012563]
[1763646161595,0.21766101,91886.0,91885.0,0.00012563]
[1763646161890,0.001,91887.0,91885.0,0.00012563]
[1763646162114,0.001,91887.0,91884.0,0.01041891]
[1763646162320,0.001,91887.0,91886.0,0.23360101]
[1763646162540,0.01088222,91893.0,91888.0,0.01088281]
[1763646162714,0.00012614,91893.0,91890.0,0.01088257]
[1763646163121,0.00012614,91893.0,91892.0,0.01594]
[1763646163500,0.00012614,91893.0,91892.0,0.03995]
[1763646164218,0.00012614,91893.0,91892.0,0.05626339]
[1763646164404,0.00012614,91893.0,91892.0,0.03995]
[1763646165134,0.00012614,91893.0,91892.0,0.05626339]
[1763646165339,0.00012614,91893.0,91892.0,0.03995]
[1763646165539,0.00012614,91893.0,91892.0,0.05626339]
[1763646167362,0.00012614,91893.0,91892.0,0.06002339]
[1763646167568,0.00012614,91893.0,91892.0,0.04371]
[1763646167770,0.00012614,91893.0,91892.0,0.06170579]
[1763646168182,0.00012614,91893.0,91892.0,0.05794579]
[1763646168323,0.00012614,91893.0,91892.0,0.05894579]
[1763646168752,0.00012614,91893.0,91892.0,0.0186224]
[1763646169263,0.00012614,91893.0,91892.0,0.0176224]
[1763646169679,0.32676,91919.0,91905.0,0.0108808]
[1763646169680,0.22846935,91917.0,91905.0,0.0108808]
[1763646169994,0.21756074,91929.0,91923.0,0.01087867]
[1763646170195,0.21756074,91929.0,91923.0,1.08467101]
[1763646170196,0.03119035,91928.0,91923.0,1.08467101]
[1763646170406,0.21757103,91924.0,91923.0,1.08467101]
[1763646171689,0.54057103,91924.0,91923.0,1.08467101]
[1763646171924,0.01088056,91907.0,91901.0,0.01207]
[1763646172109,0.01088056,91907.0,91901.0,1.09674101]
[1763646172110,0.21761615,91905.0,91901.0,1.09674101]
[1763646174625,0.21762103,91903.0,91901.0,1.09674101]
[1763646175649,0.01088056,91907.0,91901.0,1.09674101]
[1763646175650,0.01088009,91911.0,91901.0,1.09674101]
[1763646175864,0.01088009,91911.0,91903.0,0.24444005]
[1763646176106,0.00376,91914.0,91906.0,0.01088068]
[1763646176300,0.01463973,91914.0,91910.0,0.01594]
[1763646176501,0.21759975,91912.0,91910.0,0.01594]
[1763646176866,0.21759975,91912.0,91911.0,0.00113104]
[1763646179260,0.23792778,91912.0,91911.0,0.00113104]
[1763646180348,0.23892778,91912.0,91911.0,0.00113104]
[1763646180775,0.56192813,91912.0,91911.0,0.00113104]
[1763646180970,0.56092813,91912.0,91911.0,0.00113104]
[1763646181460,0.56192813,91912.0,91911.0,0.00113104]
[1763646182299,0.56192813,91912.0,91885.0,1.08467101]
[1763646182300,0.01088293,91887.0,91885.0,1.08467101]
[1763646182517,0.22855603,91882.0,91881.0,1.08467101]
[1763646182727,0.22855603,91882.0,91871.0,0.02315]
[1763646182728,0.01088387,91879.0,91872.0,0.22857888]
[1763646182938,0.0108834,91883.0,91879.0,0.01088387]
[1763646183201,0.0108834,91883.0,91872.0,1.08467101]
[1763646183202,0.11210828,91928.0,91873.0,0.02315]
[1763646183403,0.01088115,91902.0,91891.0,0.01088245]
[1763646183729,0.00376,91903.0,91889.0,0.01088269]
[1763646183929,0.01088139,91900.0,91895.0,0.01088198]
[1763646184141,0.00376,91903.0,91897.0,0.01088174]
[1763646184320,0.323,91919.0,91896.0,0.01088186]
[1763646184321,0.01087926,91918.0,91909.0,0.01088032]
[1763646184532,0.00376,91921.0,91918.0,0.01087926]
[1763646184736,0.51247221,91940.0,91918.0,0.01087926]
[1763646184737,0.01087784,91930.0,91922.0,0.01087878]
[1763646184942,0.01087677,91939.0,91932.0,0.0108776]
[1763646185147,0.02930672,91961.0,91922.0,0.00944267]
[1763646185148,0.21752527,91944.0,91942.0,0.02776]
[1763646185548,0.21765158,91944.0,91942.0,0.01128]
[1763646185836,0.01087642,91942.0,91932.0,0.0340276]
[1763646186035,0.21754842,91934.0,91932.0,0.02315]
[1763646186253,0.22842578,91934.0,91930.0,0.01087784]
[1763646186448,0.21755304,91932.0,91928.0,0.03402807]
[1763646186675,0.21755304,91932.0,91925.0,1.09554944]
[1763646186676,0.22843202,91932.0,91925.0,1.08467101]
[1763646186876,0.22843202,91932.0,91914.0,0.21759402]
[1763646186877,0.01087772,91931.0,91921.0,0.0108789]
[1763646187144,0.51247221,91950.0,91919.0,0.01087914]
[1763646187145,0.228442,91928.0,91919.0,0.01087914]
[1763646187297,0.2284639,91919.0,91913.0,1.08467101]
[1763646187528,0.01087926,91918.0,91913.0,1.09555086]
[1763646187705,0.01087843,91925.0,91920.0,0.21757924]
[1763646187910,0.00376,91934.0,91928.0,0.01087807]
[1763646187911,0.2321859,91934.0,91928.0,0.01087807]
[1763646188111,0.01463736,91934.0,91930.0,0.01087784]
[1763646188290,0.0108763,91943.0,91938.0,0.01087689]
[1763646188503,0.01087654,91941.0,91938.0,1.08467101]
[1763646188706,0.21753553,91939.0,91938.0,1.08467101]
[1763646188907,0.217535,91940.0,91938.0,1.08467101]
[1763646189610,0.21765186,91944.0,91941.0,0.2175305]
[1763646189901,0.21765186,91944.0,91943.0,0.01648]
[1763646189902,0.00012631,91944.0,91943.0,0.01648]
[1763646190106,0.00012631,91944.0,91943.0,0.03963]
[1763646190315,0.00012631,91944.0,91943.0,0.01648]
[1763646190521,0.21753553,91939.0,91938.0,1.08467101]
[1763646191367,0.01087926,91918.0,91906.0,0.02315]
[1763646191573,0.0203283,91939.0,91926.0,0.01087831]
[1763646191776,0.01087713,91936.0,91927.0,0.01128]
[1763646192057,0.01087713,91936.0,91931.0,0.01087772]
[1763646192305,0.01087725,91935.0,91927.0,0.01128]
[1763646192518,0.01463547,91950.0,91942.0,0.21752764]
[1763646192732,0.00376,91950.0,91943.0,0.01128]
[1763646192909,0.00376,91950.0,91943.0,0.05091]
[1763646193150,0.00376,91950.0,91942.0,1.08467101]
[1763646193151,0.21752607,91943.0,91942.0,1.08467101]
[1763646193777,0.23785367,91943.0,91942.0,1.08467101]
[1763646194405,0.21752607,91943.0,91942.0,1.08467101]
[1763646194608,0.21765137,91944.0,91942.0,1.08467101]
[1763646194810,0.001,91943.0,91942.0,1.08467101]
[1763646195011,0.21852607,91943.0,91942.0,1.08467101]
[1763646196416,0.21752607,91943.0,91942.0,1.08467101]
[1763646197078,0.56085373,91943.0,91942.0,1.08467101]
[1763646198463,0.56185373,91943.0,91942.0,1.08467101]
[1763646198665,0.2175805,91920.0,91914.0,0.01087973]
[1763646198923,0.21757531,91923.0,91884.0,0.43532798]
[1763646198924,0.22848556,91910.0,91905.0,0.22849637]
[1763646199269,0.21761364,91906.0,91905.0,1.08467101]
[1763646199899,0.01088044,91908.0,91905.0,1.08467101]
[1763646200107,0.2176125,91907.0,91905.0,1.08467101]
[1763646200942,0.001,91906.0,91905.0,1.08467101]
[1763646201573,0.00376,91910.0,91908.0,0.21760675]
[1763646201778,0.45137268,91942.0,91917.0,0.01087938]
[1763646201779,0.00376,91921.0,91917.0,0.01087938]
[1763646201989,0.00012626,91925.0,91924.0,0.21757103]
[1763646202223,0.00012626,91925.0,91924.0,0.24533103]
[1763646202679,0.00012626,91925.0,91924.0,0.01128]
[1763646203107,0.00012626,91925.0,91915.0,1.09555062]
[1763646203108,0.01087914,91919.0,91915.0,1.09555062]
[1763646203313,0.22846719,91918.0,91915.0,1.08467101]
[1763646203522,0.21758849,91917.0,91915.0,1.08467101]
[1763646203751,0.01087914,91919.0,91915.0,1.08467101]
[1763646203969,0.21758997,91916.0,91915.0,1.08467101]
[1763646204844,0.21761838,91904.0,91903.0,0.00023207]
[1763646205056,0.21761831,91905.0,91903.0,1.08490308]
[1763646205696,0.22849553,91906.0,91903.0,1.08490308]
[1763646205697,0.22849703,91906.0,91903.0,1.08490308]
[1763646205917,0.21761802,91905.0,91903.0,1.08490308]
[1763646208005,0.00376,91904.0,91903.0,0.00023207]
[1763646209254,0.00376,91904.0,91903.0,0.01605207]
[1763646209462,0.00376,91904.0,91903.0,0.00023207]
[1763646209937,0.2176169,91905.0,91903.0,0.03944207]
[1763646210133,0.21761838,91905.0,91903.0,0.03944207]
[1763646210367,0.01088032,91909.0,91904.0,0.03921]
[1763646210588,0.21759828,91913.0,91908.0,0.01582]
[1763646210789,0.00376,91915.0,91905.0,0.02339]
[1763646210790,0.21761364,91906.0,91905.0,0.02339]
[1763646210995,0.22849046,91908.0,91904.0,0.01088091]
[1763646211199,0.01088068,91906.0,91903.0,0.02362207]
[1763646211404,0.21761601,91905.0,91903.0,0.00023207]
[1763646212009,0.21761838,91904.0,91903.0,0.00023207]
[1763646212452,0.01088056,91907.0,91904.0,0.02713]
[1763646212453,0.22849226,91907.0,91904.0,0.02713]
[1763646212858,0.21761601,91905.0,91904.0,0.0118]